bitfinex-derivatives/quotes_ETHF0:USTF0_20250927
["timestamp","ask_amount","ask_price","bid_price","bid_amount"]
[1758965348054,0.53983568,3980.1,3980.0,2.73072515]
[1758965348655,0.00243568,3980.1,3980.0,2.73072515]
[1758965353057,0.45204,3979.6,3979.5,3.2078]
[1758965353255,1.21744,3979.6,3979.5,4.61213515]
[1758965353446,1.21744,3979.6,3979.5,4.82903515]
[1758965353852,0.7654,3979.6,3979.5,1.93473515]
[1758965354452,0.7654,3979.6,3979.5,2.38678515]
[1758965355061,0.4492,3979.3,3979.2,0.5304]
[1758965355267,0.7654,3979.3,3979.2,2.61101515]
[1758965357665,0.1256,3979.5,3979.4,0.45206]
[1758965357870,0.09811344,3979.5,3979.4,1.14716]
[1758965358071,0.5375,3979.9,3979.8,0.89311]
[1758965358273,1.44237813,3979.9,3979.8,1.14711]
[1758965358473,1.44237813,3979.9,3979.8,1.46061]
[1758965358673,1.89437813,3979.9,3979.8,1.46061]
[1758965359571,1.89437813,3979.9,3979.8,1.0086]
[1758965360976,1.89437813,3979.9,3979.8,1.46062]
[1758965361565,1.89437813,3979.9,3979.8,1.0086]
[1758965362578,1.89437813,3979.9,3979.8,1.46062]
[1758965364179,1.89437813,3979.9,3979.8,1.0086]
[1758965364380,1.89437813,3979.9,3979.8,0.4709]
[1758965366277,1.89437813,3979.9,3979.8,1.46552]
[1758965366479,0.67697813,3979.9,3979.8,1.46552]
[1758965366678,0.67697813,3979.9,3979.8,2.89691156]
[1758965366974,0.09811662,3979.9,3979.8,2.89691156]
[1758965367381,4.19842568,3980.1,3980.0,1.35579]
[1758965367686,4.42410075,3980.1,3980.0,1.60979]
[1758965367886,4.11050075,3980.1,3980.0,1.60979]
[1758965368380,3.53104277,3980.1,3980.0,1.60979]
[1758965368780,3.84464277,3980.1,3980.0,1.60979]
[1758965369175,3.30844277,3980.1,3980.0,1.60979]
[1758965369373,3.84464277,3980.1,3980.0,1.60979]
[1758965369988,0.63684277,3980.1,3980.0,4.81759]
[1758965370977,0.32324277,3980.1,3980.0,4.81759]
[1758965371184,0.63684277,3980.1,3980.0,4.81759]
[1758965371681,0.10064277,3980.1,3980.0,4.81759]
[1758965372280,0.00243568,3980.1,3980.0,4.81759]
[1758965373085,0.76433568,3980.1,3980.0,4.81759]
[1758965373285,0.31603568,3980.1,3980.0,6.24898156]
[1758965373482,0.00243568,3980.1,3980.0,6.24898156]
[1758965374385,0.31603568,3980.1,3980.0,6.24898156]
[1758965375185,0.00243568,3980.1,3980.0,6.24898156]
[1758965377177,0.00243568,3980.1,3980.0,4.81759]
[1758965377378,0.00243568,3980.1,3980.0,9.81759]
[1758965379489,0.00243568,3980.1,3980.0,4.81759]
[1758965380484,0.00243568,3980.1,3980.0,4.56359]
[1758965380790,0.00243568,3980.1,3980.0,44.00559]
[1758965383585,0.53863568,3980.1,3980.0,4.56359]
[1758965383779,0.76433568,3980.1,3980.0,43.87129]
[1758965385386,0.00243568,3980.1,3980.0,44.00459]
[1758965386386,0.00243568,3980.1,3980.0,4.56359]
[1758965386595,0.76433568,3980.1,3980.0,45.43498156]
[1758965386785,0.22503568,3980.1,3980.0,45.43498156]
[1758965387394,0.00243568,3980.1,3980.0,45.43498156]
[1758965390293,1.21375,3981.3,3981.2,0.2279]
[1758965390491,1.89109127,3981.3,3981.2,1.91329156]
[1758965390694,0.4483,3981.0,3980.9,1.43139156]
[1758965390893,1.33768,3981.0,3980.9,1.68539156]
[1758965391396,1.34002145,3981.0,3980.9,2.22859156]
[1758965391597,0.88814145,3981.0,3980.9,2.90778156]
[1758965392394,0.76424145,3981.0,3980.9,2.90778156]
[1758965393489,1.21612145,3981.0,3980.9,2.45589156]
[1758965394098,0.76424145,3981.0,3980.9,2.45589156]
[1758965394704,0.76424145,3981.0,3980.9,2.90778156]
[1758965394902,0.53854145,3981.0,3980.9,2.90778156]
[1758965395699,0.00234145,3981.0,3980.9,1.47639]
[1758965395896,0.00234145,3981.0,3980.9,2.90778156]
[1758965396493,0.77434145,3981.0,3980.9,1.22239]
[1758965396795,0.89794145,3981.0,3980.9,1.26739]
[1758965397205,0.89794145,3981.0,3980.9,1.49349]
[1758965397997,0.00234145,3981.0,3980.9,1.49349]
[1758965400300,0.00234145,3981.0,3980.9,1.23949]
[1758965400301,0.54614145,3981.0,3980.9,1.23949]
[1758965400500,0.54614145,3981.0,3980.9,1.49349]
[1758965400901,0.77434145,3981.0,3980.9,1.23949]
[1758965401100,0.89794145,3981.0,3980.9,1.49349]
[1758965402005,0.77434145,3981.0,3980.9,1.49349]
[1758965403111,0.00234145,3981.0,3980.9,1.49349]
[1758965410007,0.3361,3982.1,3981.8,0.3188]
[1758965410204,1.22295,3982.1,3982.0,1.65959156]
[1758965410409,1.89752099,3982.1,3982.0,1.65959156]
[1758965410998,1.89930034,3982.1,3982.0,1.66263323]
[1758965411204,1.44755034,3982.1,3982.0,2.11440323]
[1758965411404,1.44755034,3982.1,3982.0,2.65520323]
[1758965411706,0.87116481,3982.1,3982.0,2.65520323]
[1758965413104,0.87114767,3982.1,3982.0,2.65520323]
[1758965414704,0.09994767,3982.1,3982.0,2.65520323]
[1758965414909,0.00177935,3982.1,3982.0,2.78890323]
[1758965415111,0.56397935,3982.1,3982.0,2.78890323]
[1758965416310,0.66215449,3982.1,3982.0,2.78890323]
[1758965418907,1.32290449,3982.1,3982.0,0.00304167]
[1758965419107,6.32290449,3982.1,3982.0,0.25704167]
[1758965419303,6.89921497,3982.1,3982.0,0.25704167]
[1758965420107,6.44746497,3982.1,3982.0,0.70724167]
[1758965420316,6.32290449,3982.1,3982.0,1.47781167]
[1758965420512,0.87115449,3982.1,3982.0,1.47781167]
[1758965420809,1.32290449,3982.1,3982.0,1.02604167]
[1758965421013,1.32290449,3982.1,3982.0,0.25704167]
[1758965421316,1.32290449,3982.1,3982.0,0.48524167]
[1758965421613,1.32297621,3982.1,3982.0,0.80404167]
[1758965421815,1.8987066,3982.1,3982.0,0.25704167]
[1758965422211,1.8987066,3982.1,3982.0,0.00304167]
[1758965422411,6.8987066,3982.1,3982.0,0.25704167]
[1758965423005,6.8987066,3982.1,3982.0,0.00304167]
[1758965423204,6.8987066,3982.1,3982.0,0.25704167]
[1758965423908,6.8987066,3982.1,3982.0,0.00304167]
[1758965424114,0.45187,3981.1,3981.0,4.63919156]
[1758965424312,1.20357,3981.1,3981.0,3.4254]
[1758965424517,1.20357,3981.1,3981.0,3.6794]
[1758965424919,1.20357,3981.1,3981.0,3.4254]
[1758965425118,1.20357,3981.1,3981.0,3.68139445]
[1758965425819,0.7517,3981.1,3981.0,4.23009445]
[1758965426027,1.20357,3981.1,3981.0,4.23009445]
[1758965426624,1.20357,3981.1,3981.0,5.37803851]
[1758965432938,1.20357,3981.1,3981.0,4.61173851]
[1758965433137,1.20357,3981.1,3981.0,1.14993851]
[1758965433427,6.87773215,3981.1,3981.0,0.25599445]
[1758965439544,1.87773215,3981.1,3981.0,0.25599445]
[1758965440634,1.87773215,3981.1,3981.0,1.40393851]
[1758965441843,1.87773215,3981.1,3981.0,2.17023851]
[1758965442144,0.45187,3981.1,3981.0,2.30253851]
[1758965442743,0.77666,3981.3,3981.0,1.97523851]
[1758965442945,0.45186,3981.2,3981.1,1.21817]
[1758965443345,0.45186,3981.2,3981.0,1.53623851]
[1758965443346,0.45184,3981.4,3981.3,0.7663]
[1758965443552,0.45184,3981.4,3981.3,2.16824406]
[1758965443946,0.45184,3981.4,3981.3,2.62008406]
[1758965444345,3.2078,3981.6,3981.5,0.2176]
[1758965444543,3.2078,3981.6,3981.5,1.35042]
[1758965444851,0.99389,3981.8,3981.7,0.7663]
[1758965445053,0.99389,3981.8,3981.7,2.16824406]
[1758965446849,0.66909,3981.8,3981.7,2.16824406]
[1758965447152,0.66909,3981.8,3981.7,2.62005406]
[1758965447349,0.45179,3981.8,3981.7,2.62005406]
[1758965447551,0.45177,3982.0,3981.9,0.439]
[1758965447855,0.54993823,3982.0,3981.9,0.7663]
[1758965448155,0.45177,3982.0,3981.9,0.7663]
[1758965449755,0.00177935,3982.1,3981.9,0.439]
[1758965449950,0.54387935,3982.1,3982.0,2.16824406]
[1758965450150,0.64016322,3982.1,3982.0,2.16824406]
[1758965451357,0.54387935,3982.1,3982.0,2.16824406]
[1758965451755,0.00177935,3982.1,3982.0,2.30054406]
[1758965451956,0.00177935,3982.1,3982.0,1.1526]
[1758965452157,0.00177935,3982.1,3982.0,1.60437]
[1758965452952,0.00177935,3982.1,3982.0,1.80783215]
[1758965453150,0.00177935,3982.1,3982.0,1.60437]
[1758965454454,0.1334,3982.0,3981.6,0.3189]
[1758965454651,0.7906,3981.7,3981.6,1.59334406]
[1758965454856,0.7906,3981.7,3981.6,1.84734406]
[1758965455358,0.7906,3981.7,3981.6,2.16624406]
[1758965457463,0.5647,3981.7,3981.6,2.16624406]
[1758965457764,1.01648,3982.0,3981.9,0.7643]
[1758965458062,0.00177935,3982.1,3982.0,0.1267]
[1758965458362,0.09798086,3982.1,3982.0,0.891]
[1758965458563,0.66268086,3982.1,3982.0,0.891]
[1758965458752,1.11444086,3982.1,3982.0,0.891]
[1758965459461,1.34034086,3982.1,3982.0,1.0183]
[1758965459762,1.91468158,3982.1,3982.0,1.0183]
[1758965460255,1.91468158,3982.1,3982.0,0.225]
[1758965460460,1.01652,3981.6,3981.5,4.0988]
[1758965460660,1.01652,3981.6,3981.5,5.95257406]
[1758965460661,0.5647,3981.6,3981.5,5.95257406]
[1758965460856,1.24242,3981.6,3981.5,3.9072]
[1758965461058,1.01585,3981.3,3981.2,1.14794406]
[1758965461258,1.24245,3981.3,3981.2,1.62234406]
[1758965461654,1.24248,3981.1,3981.0,0.00199445]
[1758965461854,1.24248,3981.1,3981.0,1.40393851]
[1758965462366,1.33861704,3981.1,3981.0,0.25599445]
[1758965462558,1.912748,3981.1,3981.0,0.25599445]
[1758965462756,1.33861704,3981.1,3981.0,0.25599445]
[1758965463063,0.4715,3981.5,3981.0,0.70159445]
[1758965463366,0.4715,3981.5,3981.4,1.91224406]
[1758965463367,1.24243,3981.5,3981.4,1.91224406]
[1758965463560,1.33857703,3981.5,3981.4,2.16624406]
[1758965464754,1.24248,3981.1,3981.0,0.22239445]
[1758965464961,1.24248,3981.1,3981.0,0.25599445]
[1758965465160,1.338623,3981.1,3981.0,0.25599445]
[1758965465568,1.338623,3981.1,3981.0,0.00199445]
[1758965465763,1.338623,3981.1,3981.0,0.25599445]
[1758965466367,1.91286424,3981.1,3981.0,0.25599445]
[1758965466662,1.338623,3981.1,3981.0,0.25599445]
[1758965467361,1.33863417,3981.1,3981.0,0.25599445]
[1758965468059,1.91288218,3981.1,3981.0,0.00199445]
[1758965468260,1.91288218,3981.1,3981.0,0.25599445]
[1758965469675,1.91288218,3981.1,3981.0,0.00199445]
[1758965469871,1.22212,3980.7,3980.6,1.36504406]
[1758965470068,1.22212,3980.7,3980.3,0.342]
[1758965470069,1.22215,3980.4,3980.3,0.2171]
[1758965470372,1.22215,3980.4,3980.3,1.61904406]
[1758965470562,1.22215,3980.4,3980.3,2.18554406]
[1758965470769,1.22215,3980.4,3980.3,2.1882334]
[1758965474273,1.22215,3980.4,3980.3,1.04028934]
[1758965474472,1.22215,3980.4,3980.3,2.1882334]
[1758965475770,1.22215,3980.4,3980.3,1.8462334]
[1758965475973,4.42995,3980.4,3980.3,1.1506334]
[1758965476169,4.42995,3980.4,3980.3,0.00268934]
[1758965476474,4.42995,3980.4,3980.3,0.25668934]
[1758965478173,4.42995,3980.4,3980.3,0.00268934]
[1758965478370,0.4368,3979.7,3979.6,0.7836]
[1758965478581,1.22223,3979.7,3979.6,2.18554406]
[1758965479278,1.22223,3979.7,3979.6,2.18858015]
[1758965480473,1.22223,3979.7,3979.6,0.00303609]
[1758965480779,1.22223,3979.7,3979.6,0.25703609]
[1758965480976,1.22223,3979.7,3979.6,0.00303609]
[1758965481379,1.22223,3979.7,3979.6,0.25703609]
[1758965486180,1.31810201,3979.7,3979.6,0.25703609]
[1758965486984,1.22223,3979.7,3979.6,0.25703609]
[1758965487193,3.2078,3980.4,3979.7,0.3178]
[1758965487480,0.45195,3980.5,3980.4,0.7695]
[1758965487684,1.00345,3980.5,3980.4,1.0235]
[1758965487885,0.45192,3980.7,3980.5,0.446]
[1758965488082,3.2078,3981.3,3980.7,0.3178]
[1758965488294,3.65965,3981.3,3981.2,1.91744406]
[1758965488487,3.65965,3981.3,3981.2,2.17144406]
[1758965488689,3.88185,3981.3,3981.2,1.0235]
[1758965489088,3.2078,3981.3,3981.2,1.0235]
[1758965489787,3.9706,3981.3,3981.2,1.0235]
[1758965494596,3.9706,3981.3,3981.2,1.47536]
[1758965494898,3.2078,3981.3,3981.2,1.47536]
[1758965495491,3.6596,3981.8,3981.5,0.1282]
[1758965495693,3.2078,3981.8,3981.7,2.65190032]
[1758965496187,0.5515,3981.8,3981.7,1.88229032]
[1758965496393,1.0033,3981.8,3981.7,1.88229032]
[1758965496794,1.0033,3981.8,3981.7,2.20009032]
[1758965497093,0.5515,3981.8,3981.7,2.20009032]
[1758965497488,0.5515,3981.8,3981.7,0.7695]
[1758965497684,1.2146,3981.8,3981.7,2.65190032]
[1758965497892,0.7628,3981.8,3981.7,1.22131]
[1758965499802,1.2146,3981.8,3981.7,1.47531]
[1758965500292,0.7628,3981.8,3981.7,1.47531]
[1758965500890,1.2146,3981.8,3981.7,1.47531]
[1758965501290,0.7628,3981.8,3981.7,1.47531]
[1758965501495,1.2146,3981.8,3981.7,1.47531]
[1758965501897,0.7628,3981.8,3981.7,1.47531]
[1758965503092,1.2146,3981.8,3981.7,1.47531]
[1758965504191,1.2146,3981.8,3981.7,1.0235]
[1758965504392,1.2146,3981.8,3981.7,1.47531]
[1758965504598,1.2146,3981.8,3981.7,1.0235]
[1758965505200,1.2146,3981.8,3981.7,1.47531]
[1758965505494,0.7628,3981.8,3981.7,1.47531]
[1758965506398,0.55327935,3982.1,3982.0,1.22127]
[1758965506599,0.55327935,3982.1,3982.0,3.03406032]
[1758965506600,0.22397935,3982.1,3982.0,3.03406032]
[1758965506794,0.67573935,3982.1,3982.0,3.03406032]
[1758965506990,0.55327935,3982.1,3982.0,3.03406032]
[1758965507604,0.22397935,3982.1,3982.0,3.03406032]
[1758965507807,0.00177935,3982.1,3982.0,3.03406032]
[1758965511001,0.00177935,3982.1,3982.0,8.03406032]
[1758965514898,0.022,3982.9,3982.8,1.19718]
[1758965515097,0.022,3982.9,3982.8,1.45118]
[1758965515808,0.02513742,3982.9,3982.8,1.45386911]
[1758965517096,3.2078,3983.9,3983.6,0.7455]
[1758965517302,3.7455,3983.9,3983.8,2.62766032]
[1758965517503,4.06772834,3983.9,3983.8,2.62766032]
[1758965517900,3.9716,3983.9,3983.8,2.62766032]
[1758965518206,3.97458621,3983.9,3983.8,2.62766032]
[1758965519107,0.76678621,3983.9,3983.8,2.62766032]
[1758965519303,0.00298621,3983.9,3983.8,2.62766032]
[1758965520804,6.21e-06,3983.9,3983.8,7.62766032]
[1758965521409,0.5377,3984.8,3984.7,0.87777]
[1758965521606,3.2078,3985.4,3984.7,0.87777]
[1758965521607,0.3197,3985.3,3985.0,1.33588]
[1758965521806,3.9716,3985.4,3985.3,0.6587]
[1758965522003,3.9716,3985.4,3985.3,1.2319]
[1758965522308,0.7638,3985.4,3985.1,1.43059032]
[1758965522512,0.7638,3985.3,3985.2,0.7054]
[1758965522808,0.7638,3985.3,3985.2,0.9127]
[1758965523009,0.5377,3985.3,3985.2,1.4509]
[1758965524306,0.00224092,3985.4,3985.3,0.7455]
[1758965525104,3.2078,3986.3,3985.3,0.7455]
[1758965525105,0.7638,3986.9,3986.8,0.7455]
[1758965525317,0.7638,3986.9,3986.8,0.255]
[1758965525503,0.1259,3986.5,3985.9,3.6341]
[1758965525703,0.352,3986.0,3985.9,0.45133]
[1758965526011,0.57,3986.0,3985.9,0.70733]
[1758965526205,0.89172373,3986.0,3985.9,2.34816519]
[1758965526510,0.89172373,3986.0,3985.9,2.88636519]
[1758965526809,0.4441,3986.5,3986.4,0.97777]
[1758965527008,0.4441,3986.5,3986.4,1.23377]
[1758965527401,0.218,3986.5,3986.4,1.45377]
[1758965527605,3.6397,3987.3,3987.2,0.45118]
[1758965528112,0.43467287,3987.3,3987.2,0.76858]
[1758965528813,0.00277287,3987.3,3987.2,1.21218]
[1758965529008,0.22657287,3987.3,3987.2,1.21218]
[1758965529207,0.64667287,3987.3,3987.2,1.02558]
[1758965530309,0.6439,3986.6,3986.5,0.45125]
[1758965530514,0.4319,3986.2,3986.1,0.4513]
[1758965530809,0.4319,3986.2,3986.1,0.7083]
[1758965530810,0.6439,3986.2,3986.1,0.7083]
[1758965531008,0.4319,3986.2,3986.1,1.2448]
[1758965531209,0.4319,3986.2,3986.1,1.4693]
[1758965531603,3.2078,3986.9,3986.2,1.12825]
[1758965531803,0.4319,3986.6,3986.5,1.12256]
[1758965532003,0.4319,3986.6,3986.5,1.37956]
[1758965532314,0.4319,3986.6,3986.5,1.60406]
[1758965533112,0.2238,3986.6,3986.5,1.60406]
[1758965533614,0.2238,3986.9,3986.8,1.21223]
[1758965533803,0.2238,3986.9,3986.8,1.46923]
[1758965537613,0.43467287,3987.3,3987.2,1.21218]
[1758965537812,0.43467287,3987.3,3987.2,1.46918]
[1758965538317,6.09784287,3987.3,3987.2,0.257]
[1758965539313,6.09784287,3987.3,3987.2,0.70818]
[1758965539512,6.09784287,3987.3,3987.2,1.02558]
[1758965540314,1.00277072,3987.3,3987.2,1.24468]
[1758965540515,0.43467287,3987.3,3987.2,1.46918]
[1758965540715,0.00277287,3987.3,3987.2,1.46918]
[1758965541623,0.88584287,3987.3,3987.2,0.761]
[1758965541828,1.09784287,3987.3,3987.2,1.018]
[1758965542632,1.6666293,3987.3,3987.2,1.018]
[1758965543236,1.55037886,3987.3,3987.2,1.018]
[1758965543533,1.76227886,3987.3,3987.2,1.018]
[1758965543740,0.89529,3987.1,3987.0,0.4654]
[1758965543932,1.67597643,3987.1,3987.0,0.7224]
[1758965544238,1.5599159,3987.1,3987.0,0.9383]
[1758965544534,1.55991593,3987.1,3987.0,0.6813]
[1758965544835,1.77181593,3987.1,3987.0,0.9383]
[1758965546034,1.77181593,3987.1,3987.0,0.7224]
[1758965546334,1.55991593,3987.1,3987.0,0.9383]
[1758965546532,1.77181593,3987.1,3987.0,0.9383]
[1758965547334,1.77181593,3987.1,3987.0,0.5876]
[1758965547536,1.10724,3986.7,3986.6,0.3306]
[1758965547731,0.45131,3986.1,3986.0,3.3426]
[1758965547936,1.56003593,3986.1,3986.0,0.3918]
[1758965548135,1.56003593,3986.1,3986.0,1.26722]
[1758965548337,1.56003593,3986.1,3986.0,1.59782]
[1758965548536,1.56003593,3986.1,3986.0,1.1465]
[1758965548734,1.56003593,3986.1,3986.0,0.8895]
[1758965548936,1.56003593,3986.1,3986.0,1.1465]
[1758965549337,1.56003593,3986.1,3986.0,1.59782]
[1758965549532,0.66462593,3986.1,3986.0,1.59782]
[1758965550041,1.11593593,3986.1,3986.0,1.59782]
[1758965550230,0.66462593,3986.1,3986.0,1.59782]
[1758965550430,1.11593593,3986.1,3986.0,1.59782]
[1758965550634,1.34093593,3986.1,3986.0,1.59782]
[1758965551133,0.66462593,3986.1,3986.0,1.59782]
[1758965552235,1.56003593,3986.1,3986.0,0.8895]
[1758965552435,1.77193593,3986.1,3986.0,1.1455]
[1758965552737,1.10872593,3986.1,3986.0,1.59682]
[1758965552942,0.88962593,3986.1,3986.0,1.59682]
[1758965553142,0.66462593,3986.1,3986.0,1.59682]
[1758965553642,1.34093593,3986.1,3986.0,1.59682]
[1758965554040,1.34093593,3986.1,3986.0,1.34082]
[1758965554239,0.66462593,3986.1,3986.0,1.59682]
[1758965554547,0.66462593,3986.1,3986.0,2.74204742]
[1758965557145,0.66462593,3986.1,3986.0,1.59682]
[1758965557337,0.66462593,3986.1,3986.0,2.74204742]
[1758965559037,1.77193593,3986.1,3986.0,0.6813]
[1758965559349,1.77193593,3986.1,3986.0,0.7214]
[1758965559544,1.77193593,3986.1,3986.0,0.9373]
[1758965559841,1.77193593,3986.1,3986.0,1.38862]
[1758965560038,1.56003593,3986.1,3986.0,1.38862]
[1758965560238,1.56003593,3986.1,3986.0,0.9373]
[1758965560439,1.56003593,3986.1,3986.0,1.38862]
[1758965561945,1.46419643,3986.1,3986.0,1.38862]
[1758965562146,1.56067932,3986.1,3986.0,1.38862]
[1758965562450,1.46419643,3986.1,3986.0,1.38862]
[1758965562840,1.56067313,3986.1,3986.0,1.38862]
[1758965563542,1.56067313,3986.1,3986.0,0.6813]
[1758965563738,1.77257313,3986.1,3986.0,0.5866]
[1758965564138,1.77257313,3986.1,3986.0,0.9381]
[1758965564344,1.56067313,3986.1,3986.0,0.9381]
[1758965564842,1.56067313,3986.1,3986.0,1.1463]
[1758965565344,1.10732,3986.0,3985.9,0.33354487]
[1758965565544,4.98038313,3986.0,3985.9,0.25894487]
[1758965565740,1.10735,3985.7,3985.6,0.3306]
[1758965565942,1.10737,3985.5,3985.4,0.78199]
[1758965566147,1.10936313,3985.5,3985.4,1.25389]
[1758965566347,0.66526313,3985.5,3985.4,1.46209]
[1758965566851,0.66526313,3985.5,3985.4,1.46452831]
[1758965567657,1.11664313,3985.5,3985.4,1.46452831]
[1758965567956,1.77264313,3985.5,3985.4,1.01313831]
[1758965568257,1.77264313,3985.5,3985.4,0.80493831]
[1758965568962,1.77264313,3985.5,3985.4,0.33303831]
[1758965569149,1.77264313,3985.5,3985.4,0.58903831]
[1758965570448,1.77264313,3985.5,3985.4,0.25843831]
[1758965570647,0.89551,3985.2,3985.1,0.99792]
[1758965570843,0.5405767,3985.2,3985.1,1.46212]
[1758965571349,0.5405767,3985.2,3985.1,2.60734742]
[1758965571549,0.5405767,3985.2,3985.1,2.61054927]
[1758965572151,0.0964767,3985.2,3985.1,2.61054927]
[1758965573457,0.4514,3985.3,3985.2,1.22491]
[1758965573650,0.54786343,3985.3,3985.2,1.22491]
[1758965574356,0.09646343,3985.3,3985.2,1.48091]
[1758965575558,0.54786343,3985.3,3985.2,1.48091]
[1758965575946,0.09646343,3985.3,3985.2,1.48091]
[1758965576449,0.76426343,3985.3,3985.2,1.48091]
[1758965576648,1.33816899,3985.3,3985.2,1.48091]
[1758965579357,1.12176899,3985.3,3985.2,1.48091]
[1758965580253,0.67036899,3985.3,3985.2,1.48091]
[1758965580559,3.65917,3985.6,3985.5,1.35468]
[1758965580757,4.54624836,3985.6,3985.5,2.30452742]
[1758965580960,4.97484836,3985.6,3985.5,0.5813]
[1758965581259,4.9748456,3985.6,3985.5,0.256]
[1758965581560,0.8842,3985.3,3985.2,0.99721]
[1758965581861,0.98076875,3985.3,3985.2,1.48091]
[1758965583250,0.52936875,3985.3,3985.2,1.48091]
[1758965583445,0.31296875,3985.3,3985.2,2.62613742]
[1758965583854,0.09656875,3985.3,3985.2,2.62613742]
[1758965584055,0.66778,3985.5,3985.4,0.7735]
[1758965584250,0.67072885,3985.5,3985.4,2.37011742]
[1758965584961,3.2078,3986.0,3985.9,0.89953]
[1758965585169,3.87862291,3986.0,3985.9,2.62505742]
[1758965585661,3.2078,3986.4,3985.9,7.62505742]
[1758965585849,0.67094208,3986.3,3986.2,0.7735]
[1758965586156,0.67094208,3986.3,3986.2,1.4808]
[1758965587064,0.67094208,3986.3,3986.2,2.62602742]
[1758965587465,3.88601,3987.0,3986.9,0.7409]
[1758965587669,4.5568153,3987.0,3986.9,2.14212742]
[1758965589073,4.3298153,3987.0,3986.9,2.59334742]
[1758965589364,3.8786053,3987.0,3986.9,2.59334742]
[1758965589560,4.3298153,3987.0,3986.9,2.14212742]
[1758965590154,4.5568153,3987.0,3986.9,2.14212742]
[1758965590355,1.21301,3986.1,3986.0,0.2149]
[1758965590555,1.21301,3986.1,3985.6,0.4228]
[1758965590556,1.21305,3985.7,3985.6,0.4228]
[1758965590977,0.7617,3985.4,3985.3,4.56792742]
[1758965591161,0.88839,3985.4,3985.3,5.03082742]
[1758965591467,1.21309,3985.4,3985.3,1.82302742]
[1758965591768,1.21309,3985.4,3985.3,1.56802742]
[1758965591970,1.21311,3985.2,3985.1,0.21810185]
[1758965592265,4.42091,3985.2,3985.1,0.21810185]
[1758965592480,5.09094583,3985.2,3985.1,0.25920185]
[1758965594570,5.09094583,3985.2,3985.1,0.00320185]
[1758965594867,5.09094583,3985.2,3985.1,0.25820185]
[1758965595059,5.09094583,3985.2,3985.1,0.00320185]
[1758965595571,5.0908976,3985.2,3985.1,0.00320185]
[1758965597865,0.67847,3984.7,3984.6,0.2149]
[1758965598067,1.21317,3984.7,3984.6,0.4699]
[1758965598265,1.30955475,3984.7,3984.6,0.4699]
[1758965598569,1.21319,3984.5,3984.4,0.533]
[1758965598868,1.21319,3984.5,3984.4,1.2395]
[1758965599065,1.21605176,3984.5,3984.4,1.44967006]
[1758965599266,0.76456176,3984.5,3984.4,1.44967006]
[1758965600266,1.21605176,3984.5,3984.4,1.44967006]
[1758965601266,0.76456176,3984.5,3984.4,1.44967006]
[1758965601664,1.21605176,3984.5,3984.4,0.98677006]
[1758965601863,1.21605176,3984.5,3984.4,0.79027006]
[1758965602273,1.21605176,3984.5,3984.4,1.24177006]
[1758965602773,1.21605176,3984.5,3984.4,0.00227006]
[1758965603069,0.7671,3984.0,3983.9,1.22846]
[1758965603263,0.4402,3984.0,3983.9,1.48346]
[1758965604070,0.4402,3984.0,3983.9,1.48670205]
[1758965604467,0.2248,3984.0,3983.9,1.48670205]
[1758965604974,3.2078,3984.4,3984.3,1.22841]
[1758965605165,0.00286176,3984.5,3984.4,0.9005]
[1758965605469,0.00286176,3984.5,3984.4,1.2284]
[1758965609366,0.89455176,3984.5,3984.4,0.7769]
[1758965609566,0.89173,3984.1,3984.0,0.9137]
[1758965609775,1.21863,3984.1,3984.0,1.48345]
[1758965610170,1.21863,3984.1,3984.0,1.0319]
[1758965610573,1.34265,3984.0,3983.9,0.00324205]
[1758965610880,0.45161,3983.4,3983.3,0.3279]
[1758965611067,0.4402,3983.4,3983.3,0.255]
[1758965611275,1.21871,3983.4,3983.3,0.8069]
[1758965611573,1.21871,3983.4,3983.3,0.7769]
[1758965611882,1.21871,3983.4,3983.3,0.25733854]
[1758965612384,0.2248,3983.4,3983.3,1.03423854]
[1758965612580,0.4402,3983.4,3983.3,1.03423854]
[1758965613175,3.2078,3983.5,3983.4,0.67561]
[1758965613378,3.2078,3983.5,3983.4,1.22851]
[1758965613783,3.4326,3983.5,3983.4,1.22851]
[1758965614378,3.2078,3983.5,3983.4,1.22851]
[1758965615483,0.2248,3983.7,3983.6,1.22849]
[1758965616484,0.67636,3983.9,3983.8,1.22846]
[1758965616679,0.67636,3983.9,3983.8,1.48346]
[1758965616880,0.89176,3983.9,3983.8,1.48346]
[1758965617083,1.21866,3983.9,3983.8,1.48346]
[1758965617383,1.21866,3983.9,3983.8,1.48347]
[1758965617691,0.4402,3983.9,3983.8,1.48347]
[1758965617982,0.89176,3983.9,3983.8,1.48347]
[1758965618680,1.21866,3983.9,3983.8,0.224]
[1758965618885,1.2187,3983.5,3983.4,0.5519]
[1758965619079,0.45161,3983.4,3983.3,0.00233854]
[1758965619387,1.21871,3983.4,3983.3,0.25733854]
[1758965619580,1.21871,3983.4,3983.3,0.48133854]
[1758965619775,1.21871,3983.4,3983.3,0.80923854]
[1758965620181,1.31424255,3983.4,3983.3,0.48133854]
[1758965620385,1.21871,3983.4,3983.3,0.80923854]
[1758965621279,3.2078,3983.5,3983.4,1.22851]
[1758965621477,3.2078,3984.0,3983.9,0.45156]
[1758965621676,3.87617979,3984.0,3983.9,1.48346]
[1758965622387,4.32772979,3984.0,3983.9,1.48346]
[1758965622578,3.75493057,3984.0,3983.9,1.48346]
[1758965623184,3.75493057,3984.0,3983.9,1.0319]
[1758965623477,3.97973057,3984.0,3983.9,1.0319]
[1758965623786,1.21868,3983.7,3983.6,0.5519]
[1758965623987,1.21868,3983.7,3983.6,0.8069]
[1758965624481,1.21868,3983.7,3983.6,1.0319]
[1758965624672,1.21868,3983.7,3983.6,0.7769]
[1758965624875,1.31432028,3983.7,3983.6,1.0319]
[1758965625075,1.31432028,3983.7,3983.6,0.7769]
[1758965625287,1.31432028,3983.7,3983.6,1.0319]
[1758965626282,1.88757374,3983.7,3983.6,1.0319]
[1758965632989,1.20901,3983.4,3983.3,0.78123854]
[1758965633191,1.87879745,3983.4,3983.3,1.03623854]
[1758965633394,1.30465028,3983.4,3983.3,1.48786854]
[1758965633584,1.30465028,3983.4,3983.3,1.03623854]
[1758965633779,1.87880423,3983.4,3983.3,0.22943854]
[1758965634094,1.87880423,3983.4,3983.3,0.25733854]
[1758965634487,1.87880423,3983.4,3983.3,0.57083854]